bitfinex-derivatives/quotes_SOLF0:USTF0_20250820
["timestamp","ask_amount","ask_price","bid_price","bid_amount"]
[1755706698268,5.01312382,184.48,184.36,2.98]
[1755706698462,2.8,184.49,184.39,5.4229]
[1755706698763,2.8,184.49,184.39,2.98]
[1755706700465,144.42,184.52,184.39,2.98]
[1755706700661,144.42,184.52,184.44,5.4213]
[1755706700964,144.42,184.52,184.45,2.98]
[1755706701368,147.22,184.52,184.4,2.98]
[1755706701965,2.8,184.51,184.4,2.98]
[1755706703271,144.42,184.54,184.4,2.98]
[1755706703468,144.42,184.54,184.39,2.98]
[1755706703665,2.8,184.53,184.39,2.98]
[1755706703962,2.8,184.53,184.42,8.4021]
[1755706704162,2.8,184.53,184.42,2.98]
[1755706704364,364.02,184.56,184.42,2.98]
[1755706704564,364.02,184.56,184.45,2.98]
[1755706705367,2.8,184.55,184.45,2.98]
[1755706705964,2.8,184.55,184.34,4.54202252]
[1755706705965,2.8,184.55,184.38,2.91]
[1755706706167,2.96,184.54,184.38,2.91]
[1755706706575,369.03312382,184.56,184.43,2.91]
[1755706706576,364.02,184.56,184.43,2.91]
[1755706706774,2.96,184.59,184.43,2.91]
[1755706707071,2.96,184.59,184.47,2.91]
[1755706707477,2.96,184.59,184.5,5.4196]
[1755706707779,2.96,184.59,184.5,2.91]
[1755706708067,144.74,184.6,184.46,5.01312382]
[1755706708068,144.74,184.6,184.52,8.3292]
[1755706708268,144.74,184.6,184.52,2.91]
[1755706709172,144.74,184.6,184.52,8.3292]
[1755706709377,144.74,184.6,184.52,2.91]
[1755706710174,144.74,184.6,184.53,5.4189]
[1755706710375,144.74,184.6,184.52,2.91]
[1755706711970,2.96,184.59,184.52,2.91]
[1755706712674,2.96,184.59,184.46,5.01312382]
[1755706712876,2.96,184.59,184.49,2.91]
[1755706713280,2.96,184.59,184.45,2.91]
[1755706713775,2.96,184.56,184.45,2.91]
[1755706714277,2.96,184.56,184.45,8.3313]
[1755706714580,2.96,184.56,184.45,2.91]
[1755706715175,2.96,184.56,184.47,2.91]
[1755706715374,147.2,184.6,184.47,2.91]
[1755706716173,2.96,184.59,184.47,2.91]
[1755706716980,2.96,184.59,184.39,66.49423241]
[1755706716981,2.96,184.59,184.39,62.0]
[1755706717176,2.96,184.57,184.43,2.91]
[1755706717373,16.25,184.57,184.43,2.91]
[1755706717685,2.96,184.53,184.43,2.91]
[1755706720284,143.78,184.56,184.47,2.91]
[1755706720885,2.96,184.55,184.47,2.91]
[1755706722986,2.96,184.55,184.43,2.91]
[1755706723190,2.96,184.55,184.4,2.91]
[1755706723584,2.96,184.55,184.39,7.40423241]
[1755706723780,2.96,184.55,184.41,2.91]
[1755706723985,2.96,184.55,184.42,2.91]
[1755706724188,2.96,184.55,184.46,5.4209]
[1755706724389,2.96,184.55,184.46,2.91]
[1755706725387,2.96,184.59,184.46,2.91]
[1755706725785,2.96,184.59,184.5,8.3296]
[1755706726091,2.96,184.59,184.5,2.91]
[1755706726882,2.96,184.59,184.44,2.91]
[1755706727381,2.96,184.59,184.47,5.4207]
[1755706727585,2.96,184.59,184.47,2.91]
[1755706728895,2.96,184.59,184.47,8.3306]
[1755706729198,2.96,184.58,184.47,2.91]
[1755706733595,5.01312382,184.56,184.43,7.40423241]
[1755706733900,2.96,184.55,184.43,7.40423241]
[1755706735398,2.96,184.55,184.43,2.91]
[1755706736199,2.89,184.51,184.43,2.91]
[1755706736399,2.89,184.51,184.39,7.28423241]
[1755706736600,2.89,184.5,184.39,7.28423241]
[1755706737502,2.89,184.5,184.39,2.79]
[1755706738296,2.89,184.5,184.37,7.28423241]
[1755706738496,2.89,184.47,184.37,7.28423241]
[1755706738704,2.89,184.47,184.37,2.79]
[1755706739095,5.01312382,184.44,184.34,4.49423241]
[1755706739295,2.89,184.43,184.33,7.28423241]
[1755706739807,2.89,184.47,184.36,4.49423241]
[1755706740103,2.89,184.47,184.37,2.79]
[1755706740797,5.01312382,184.44,184.33,7.28423241]
[1755706740996,2.89,184.43,184.33,2.79]
[1755706742105,142.22,184.42,184.33,8.2148]
[1755706742403,142.22,184.42,184.34,2.79]
[1755706742597,142.22,184.42,184.35,5.424]
[1755706742796,142.22,184.42,184.34,2.79]
[1755706743900,142.22,184.42,184.34,8.2145]
[1755706744201,142.22,184.42,184.34,2.79]
[1755706745802,142.22,184.42,184.34,7.28423241]
[1755706745995,142.22,184.42,184.36,4.49423241]
[1755706746202,2.89,184.47,184.39,2.79]
[1755706747707,364.26,184.53,184.39,2.79]
[1755706747708,2.89,184.51,184.39,2.79]
[1755706748210,2.89,184.51,184.42,2.79]
[1755706748701,2.89,184.51,184.37,4.49423241]
[1755706748902,2.89,184.51,184.38,7.28423241]
[1755706749105,2.89,184.49,184.38,2.79]
[1755706749613,2.89,184.45,184.34,2.79]
[1755706750414,2.89,184.45,184.36,2.79]
[1755706751714,2.89,184.45,184.33,5.4248]
[1755706751909,2.89,184.45,184.34,2.79]
[1755706752413,2.89,184.45,184.34,8.2145]
[1755706752611,2.89,184.45,184.34,2.79]
[1755706753108,2.89,184.45,184.35,2.79]
[1755706754313,5.88553581,184.45,184.35,2.79]
[1755706754914,2.99553581,184.48,184.35,7.28423241]
[1755706755113,2.99553581,184.48,184.37,2.79]
[1755706755414,147.42553581,184.49,184.38,2.79]
[1755706755802,2.99553581,184.46,184.38,2.79]
[1755706756114,5.88553581,184.46,184.36,2.79]
[1755706756613,5.88553581,184.46,184.36,8.2139]
[1755706756913,2.89,184.46,184.36,2.79]
[1755706757104,2.99553581,184.45,184.36,2.79]
[1755706757417,2.89,184.44,184.36,2.79]
[1755706758310,2.89,184.41,184.32,7.28423241]
[1755706758504,2.89,184.41,184.32,2.79]
[1755706759715,2.99553581,184.43,184.32,2.79]
[1755706760114,2.99553581,184.43,184.35,5.424]
[1755706760415,2.99553581,184.46,184.34,4.49423241]
[1755706760715,141.2,184.47,184.38,2.79]
[1755706760913,144.19553581,184.47,184.38,2.79]
[1755706761113,2.89,184.46,184.38,8.2133]
[1755706761306,2.89,184.46,184.38,2.79]
[1755706763520,2.89,184.46,184.34,2.79]
[1755706764215,4.99199878,184.44,184.34,2.79]
[1755706764415,145.91199878,184.44,184.34,2.79]
[1755706764612,2.89,184.43,184.34,2.79]
[1755706766017,2.89,184.43,184.3,8.2056]
[1755706766417,2.89,184.43,184.3,2.78]
[1755706766713,140.76,184.42,184.3,2.78]
[1755706766919,140.76,184.42,184.31,2.78]
[1755706767312,140.76,184.42,184.34,2.78]
[1755706768817,2.94,184.41,184.34,2.78]
[1755706769417,148.51199878,184.44,184.34,2.78]
[1755706770021,2.94,184.43,184.34,2.78]
[1755706772019,4.99199878,184.44,184.34,2.78]
[1755706772323,140.54,184.45,184.34,2.78]
[1755706772522,7.93199878,184.44,184.34,2.78]
[1755706773219,2.94,184.43,184.34,2.78]
[1755706773425,2.94,184.43,184.31,2.78]
[1755706774326,2.94,184.43,184.32,2.78]
[1755706774821,2.94,184.43,184.32,8.2049]
[1755706775021,2.94,184.43,184.32,2.78]
[1755706775222,2.94,184.43,184.33,5.4246]
[1755706775418,2.94,184.43,184.32,7.27423241]
[1755706776226,143.22,184.43,184.33,2.78]
[1755706776521,2.94,184.47,184.35,4.49423241]
[1755706776824,2.94,184.47,184.36,8.2037]
[1755706777927,2.94,184.47,184.36,2.78]
[1755706778128,2.94,184.47,184.37,4.49423241]
[1755706778328,2.94,184.47,184.38,2.78]
[1755706779128,2.94,184.47,184.38,7.27423241]
[1755706779333,2.94,184.47,184.38,8.2033]
[1755706779530,2.94,184.47,184.38,7.27423241]
[1755706779724,2.94,184.47,184.39,2.78]
[1755706780631,2.94,184.47,184.39,8.2029]
[1755706780926,4.99199878,184.52,184.39,8.2029]
[1755706780927,140.28,184.51,184.43,5.4218]
[1755706781123,140.28,184.51,184.43,2.78]
[1755706781522,140.28,184.51,184.43,7.27423241]
[1755706781717,140.28,184.51,184.45,5.4211]
[1755706781924,140.28,184.51,184.46,2.78]
[1755706782130,140.28,184.51,184.47,2.78]
[1755706782527,2.94,184.56,184.48,2.78]
[1755706782727,140.28,184.57,184.48,2.78]
[1755706782929,140.28,184.57,184.49,5.4201]
[1755706783324,140.28,184.57,184.48,2.78]
[1755706783628,2.94,184.56,184.48,2.78]
[1755706784220,140.28,184.57,184.48,2.78]
[1755706785029,140.28,184.57,184.49,5.42]
[1755706785229,140.28,184.57,184.5,2.78]
[1755706786830,140.28,184.57,184.53,5.4189]
[1755706787028,367.44975877,184.63,184.54,2.78]
[1755706787229,507.70975877,184.63,184.54,2.78]
[1755706787431,507.70975877,184.63,184.54,8.1986]
[1755706787620,507.70975877,184.63,184.54,2.78]
[1755706787825,504.72,184.63,184.54,2.78]
[1755706788727,2.94,184.68,184.54,2.78]
[1755706789021,143.16,184.68,184.58,5.4173]
[1755706789335,143.16,184.68,184.59,2.78]
[1755706790240,143.16,184.68,184.59,8.1971]
[1755706790529,143.16,184.68,184.59,2.78]
[1755706791627,140.22,184.68,184.59,2.78]
[1755706792737,140.22,184.68,184.61,2.78]
[1755706793827,140.22,184.68,184.63,5.416]
[1755706794141,140.22,184.72,184.64,2.78]
[1755706794435,140.22,184.72,184.65,5.4152]
[1755706794728,140.22,184.72,184.64,2.78]
[1755706795332,140.22,184.72,184.65,5.4154]
[1755706796035,0.94245091,184.8,184.64,2.78]
[1755706796036,2.85,184.75,184.64,2.78]
[1755706796334,2.85,184.74,184.64,2.78]
[1755706797830,2.85,184.74,184.61,3.06]
[1755706798325,2.85,184.74,184.62,5.4161]
[1755706799433,2.85,184.74,184.63,5.4159]
[1755706799836,140.38,184.73,184.61,3.06]
[1755706800135,2.85,184.72,184.61,3.06]
[1755706800335,2.85,184.71,184.52,3.06]
[1755706800535,2.85,184.71,184.57,3.06]
[1755706800931,2.85,184.71,184.55,4.98122798]
[1755706801137,2.85,184.71,184.56,3.06]
[1755706801447,2.85,184.71,184.65,5.4152]
[1755706801644,2.85,184.71,184.51,15.3044773]
[1755706801645,2.85,184.71,184.55,4.98122798]
[1755706801845,2.85,184.71,184.61,3.06]
[1755706802042,4.98122798,184.7,184.58,3.06]
[1755706802240,2.85,184.69,184.58,3.06]
[1755706802436,140.42,184.72,184.58,3.06]
[1755706802746,2.85,184.72,184.58,3.06]
[1755706803451,2.85,184.68,184.58,3.06]
[1755706803751,2.85,184.68,184.54,3.06]
[1755706804139,2.85,184.64,184.54,3.06]
[1755706804338,2.85,184.62,184.47,3.06]
[1755706805247,143.47,184.62,184.5,8.4796]
[1755706805443,4.98122798,184.61,184.5,3.06]
[1755706805643,4.98122798,184.57,184.46,3.06]
[1755706805845,2.85,184.56,184.46,3.06]
[1755706806942,2.85,184.56,184.41,3.06]
[1755706807252,2.85,184.56,184.41,8.4822]
[1755706807440,2.85,184.56,184.41,3.06]
[1755706807640,2.85,184.54,184.41,3.06]
[1755706807850,2.85,184.54,184.45,3.06]
[1755706808053,2.85,184.58,184.39,3.06]
[1755706808253,2.85,184.58,184.49,5.4198]
[1755706808553,2.85,184.58,184.49,3.06]
[1755706808753,140.5,184.59,184.51,5.4193]
[1755706808953,140.5,184.59,184.49,3.06]
[1755706809344,140.5,184.59,184.52,5.4192]
[1755706809545,140.5,184.59,184.49,3.06]
[1755706809950,140.5,184.59,184.52,5.419]
[1755706810250,363.98,184.6,184.52,5.419]
[1755706810455,363.98,184.6,184.52,8.479]
[1755706810659,363.98,184.6,184.52,3.06]
[1755706811053,140.7,184.64,184.54,5.4184]
[1755706812056,140.68,184.64,184.52,3.06]
[1755706812360,2.85,184.63,184.52,3.06]
[1755706814162,2.85,184.63,184.52,8.4792]
[1755706814462,2.85,184.63,184.52,3.06]
[1755706814661,140.62,184.62,184.52,3.06]
[1755706814963,140.62,184.62,184.54,5.4184]
[1755706816661,2.85,184.67,184.52,3.06]
[1755706816861,140.46,184.66,184.52,3.06]
[1755706817063,140.46,184.66,184.59,5.4172]
[1755706817653,140.46,184.66,184.57,3.06]
[1755706818361,366.91,184.7,184.57,3.06]
[1755706818560,366.91,184.7,184.6,5.4168]
[1755706818561,140.68,184.69,184.6,5.4168]
[1755706818758,2.85,184.68,184.57,3.06]
[1755706819167,2.85,184.68,184.6,5.4167]
[1755706819660,2.85,184.68,184.57,3.06]
[1755706820668,364.06,184.7,184.57,3.06]
[1755706820869,364.06,184.7,184.54,9.44700528]
[1755706820870,364.06,184.7,184.59,3.06]
[1755706821268,140.54,184.71,184.59,3.06]
[1755706821570,140.54,184.71,184.63,3.06]
[1755706821771,2.85,184.76,184.63,3.06]
[1755706822071,369.06122798,184.8,184.64,5.4155]
[1755706822072,2.85,184.74,184.64,5.4155]
[1755706822264,2.85,184.74,184.63,3.06]
[1755706822465,2.85,184.74,184.63,8.4758]
[1755706822668,2.85,184.74,184.63,3.06]
[1755706823270,140.58,184.74,184.63,3.06]
[1755706824065,140.58,184.74,184.68,5.4144]
[1755706824268,140.58,184.74,184.59,4.4657773]
[1755706824269,143.33,184.77,184.67,3.06]
[1755706824471,2.85,184.77,184.67,3.06]
[1755706824673,2.85,184.83,184.67,3.06]
[1755706824870,140.46,184.82,184.67,3.06]
[1755706825074,140.46,184.82,184.72,5.4134]
[1755706825574,140.46,184.82,184.71,3.06]
[1755706825575,140.52,184.81,184.71,3.06]
[1755706825875,3.02,184.8,184.71,3.06]
[1755706826173,3.02,184.8,184.67,3.0]
[1755706826669,0.03707071,184.75,184.74,0.03612263]
[1755706827073,140.6,184.78,184.74,0.03612263]
[1755706827281,3.02,184.77,184.74,0.03612263]
[1755706827473,3.05672244,184.76,184.74,0.03612263]
[1755706827772,0.03672244,184.76,184.74,0.03612263]
[1755706827974,3.02,184.75,184.74,0.03612263]
[1755706830067,3.56,184.75,184.63,8.4158]
[1755706830269,3.02,184.75,184.63,3.0]
[1755706831171,3.02,184.75,184.66,5.4151]
[1755706831367,9.101116,184.88,184.63,3.0]
[1755706831368,0.03433168,184.71,184.63,3.0]
[1755706831676,0.03433168,184.71,184.7,3.0]
[1755706831874,3.02,184.78,184.7,3.0]
[1755706832070,3.02,184.78,184.62,9.44700528]
[1755706832267,0.03518613,184.72,184.63,3.0]
[1755706832664,0.03518613,184.72,184.62,9.44700528]
[1755706832878,0.03518613,184.72,184.66,4.98122798]
[1755706833175,0.03518613,184.72,184.71,5.4137]
[1755706833371,3.02,184.78,184.71,3.0]
[1755706833676,0.04132177,184.73,184.72,8.4133]
[1755706833972,0.04132177,184.73,184.72,3.0]
[1755706834166,143.5,184.82,184.72,3.0]
[1755706834368,0.03870846,184.74,184.66,4.98122798]
[1755706834671,3.02,184.82,184.73,3.0]
[1755706834871,3.02,184.82,184.74,5.4126]
[1755706835071,3.02,184.82,184.73,3.0]
[1755706835576,0.04007666,184.8,184.73,3.0]
[1755706837573,0.04007666,184.8,184.75,5.4123]
[1755706837770,0.04007666,184.8,184.72,3.0]
[1755706838174,3.02,184.83,184.72,3.0]
[1755706838470,0.03838619,184.78,184.72,3.0]
[1755706838667,0.03838619,184.78,184.72,8.4134]
[1755706839270,0.03838619,184.78,184.72,4.98122798]
[1755706839476,0.03838619,184.78,184.73,3.0]
[1755706839877,0.03838619,184.78,184.77,5.4119]
[1755706840076,0.03838619,184.78,184.77,8.4119]
[1755706841084,0.03838619,184.78,184.77,3.0]
[1755706841681,0.03838619,184.78,184.77,8.4119]
[1755706842576,0.03838619,184.78,184.77,3.0]
[1755706843575,0.03838619,184.78,184.77,8.4119]
[1755706845084,3.02,184.87,184.79,5.4112]
[1755706845279,3.02,184.87,184.77,3.0]
[1755706845780,3.02,184.87,184.81,5.4107]
[1755706847281,3.02,184.87,184.8,8.4109]
[1755706847487,3.02,184.87,184.77,3.0]
[1755706847978,3.02,184.87,184.8,5.411]
[1755706848185,3.02,184.87,184.8,8.411]
[1755706848577,3.02,184.87,184.75,3.0]
[1755706849875,3.02,184.87,184.76,5.4121]
[1755706850284,3.02,184.87,184.75,3.0]
[1755706850988,3.02,184.87,184.77,5.4117]
[1755706851182,3.02,184.87,184.75,3.0]
[1755706851382,3.02,184.87,184.77,5.4119]
[1755706851778,3.02,184.87,184.75,3.0]
[1755706852480,3.02,184.87,184.76,3.0]
[1755706852991,3.02,184.87,184.76,8.4122]
[1755706853189,17.19152023,184.99,184.76,8.4122]
[1755706853190,3.02,184.91,184.77,3.0]
[1755706853492,3.02,184.91,184.8,5.4108]
[1755706853686,3.02,184.91,184.79,4.98122798]
[1755706853885,3.02,184.91,184.8,3.0]
[1755706854887,3.02,184.91,184.76,3.0]
[1755706855687,3.02,184.91,184.77,5.4119]
[1755706855990,3.02,184.91,184.76,3.0]
[1755706856687,2.89,184.9,184.76,3.0]
[1755706857985,2.89,184.9,184.8,5.411]
[1755706858188,2.89,184.9,184.77,2.94]
[1755706860888,2.89,184.9,184.73,2.94]
[1755706861496,2.89,184.86,184.73,2.94]
[1755706862302,0.03429773,184.81,184.78,0.03437929]
[1755706862594,2.89,184.8,184.78,0.03437929]
[1755706862798,0.03429773,184.81,184.78,0.03437929]
[1755706863895,2.92429773,184.81,184.78,0.03437929]
[1755706864491,2.89,184.8,184.78,0.03437929]
[1755706864897,0.03429773,184.81,184.78,0.03437929]
[1755706865300,2.92429773,184.81,184.78,0.03437929]
[1755706865897,0.03429773,184.81,184.78,0.03437929]
[1755706866296,0.03429773,184.81,184.79,2.94]
[1755706867000,0.03429773,184.81,184.78,0.03437929]
[1755706867300,2.92429773,184.81,184.78,0.03437929]
[1755706867894,0.03429773,184.81,184.78,0.03437929]
[1755706868194,2.89,184.79,184.78,0.03437929]
[1755706870300,2.89,184.79,184.66,363.84]
[1755706870301,0.54,184.79,184.68,4.48761604]
[1755706870495,2.89,184.78,184.68,4.48761604]
[1755706870695,2.89,184.78,184.69,2.94]
[1755706871401,2.89,184.78,184.65,7.42761604]
[1755706871598,2.89,184.78,184.66,4.48761604]
[1755706871895,2.89,184.74,184.65,7.42761604]
[1755706872498,2.89,184.74,184.65,2.94]
[1755706872693,2.89,184.74,184.63,4.50053193]
[1755706873202,2.89,184.74,184.64,2.94]
[1755706873403,0.04045207,184.7,184.62,4.50053193]
[1755706873600,2.93045207,184.7,184.62,4.50053193]
[1755706873904,2.93045207,184.7,184.63,4.50053193]
[1755706874295,2.93045207,184.7,184.62,12.85673193]
[1755706874501,2.93045207,184.7,184.62,7.44053193]
[1755706874804,0.04045207,184.7,184.65,2.94]
[1755706875006,0.04045207,184.7,184.66,2.94]
[1755706875202,2.89,184.78,184.7,5.4137]
[1755706875397,2.89,184.78,184.7,2.94]
[1755706875598,363.66,184.79,184.7,2.94]
[1755706875800,363.66,184.79,184.72,5.4133]
[1755706875994,0.03509671,184.76,184.72,5.4133]
[1755706876399,0.03509671,184.76,184.74,2.94]
[1755706876600,0.03509671,184.76,184.7,4.50053193]
[1755706876906,0.03509671,184.76,184.69,7.44053193]
[1755706877202,0.03509671,184.76,184.71,5.4136]
[1755706877407,0.03509671,184.76,184.71,8.3536]
[1755706877608,0.03509671,184.76,184.7,7.44053193]
[1755706877809,0.03509671,184.76,184.73,5.413]
[1755706878008,0.03509671,184.76,184.73,2.94]
[1755706878206,0.03509671,184.76,184.71,4.50053193]
[1755706878403,0.03509671,184.76,184.72,2.94]
[1755706878801,0.03509671,184.76,184.73,2.94]
[1755706879104,0.03509671,184.76,184.74,2.94]
[1755706879705,0.03509671,184.76,184.72,2.94]
[1755706879906,2.92509671,184.76,184.7,4.50053193]
[1755706880107,2.92509671,184.76,184.71,4.50053193]
[1755706880301,2.92509671,184.76,184.69,4.50053193]
[1755706880905,2.92509671,184.76,184.69,9.91453193]
[1755706881411,2.92509671,184.76,184.69,5.414]
[1755706882314,2.92509671,184.76,184.68,8.3545]
[1755706882508,2.92509671,184.76,184.68,2.94]
[1755706883110,2.92509671,184.76,184.68,7.44053193]
[1755706883914,2.92509671,184.76,184.69,4.50053193]
[1755706884213,0.03509671,184.76,184.7,2.94]
[1755706884612,0.03509671,184.76,184.7,7.44053193]
[1755706884813,0.03509671,184.76,184.68,4.50053193]
[1755706885012,0.03509671,184.76,184.67,4.50053193]
[1755706885208,0.03509671,184.76,184.68,2.94]
[1755706885406,2.89,184.75,184.68,2.94]
[1755706886113,0.03509671,184.76,184.68,7.44053193]
[1755706886313,0.03509671,184.76,184.68,2.94]
[1755706886516,0.03509671,184.76,184.68,7.44053193]
[1755706886826,0.03509671,184.76,184.7,3.05]
[1755706887213,0.03509671,184.76,184.69,7.55053193]
[1755706887713,0.03509671,184.76,184.7,5.4138]
[1755706887912,0.03509671,184.76,184.69,7.55053193]
[1755706888109,0.03509671,184.76,184.7,5.4139]
[1755706888614,0.03509671,184.76,184.69,7.55053193]
[1755706889211,0.03509671,184.76,184.68,4.50053193]
[1755706889416,0.03509671,184.76,184.67,4.50053193]
[1755706889609,2.95,184.75,184.67,4.50053193]
[1755706889810,2.95,184.75,184.65,3.05]
[1755706889811,2.95,184.75,184.65,4.50053193]
[1755706890011,2.95,184.72,184.65,4.50053193]
[1755706890511,2.95,184.72,184.63,4.50053193]
[1755706890716,0.04130872,184.73,184.68,3.05]
[1755706891016,2.95,184.73,184.65,3.05]
[1755706891319,0.03567755,184.72,184.67,8.4647]
[1755706891518,0.03567755,184.72,184.66,7.54726409]
[1755706892119,0.03567755,184.72,184.67,4.49726409]
[1755706892317,0.03567755,184.72,184.7,3.05]
[1755706892916,0.03567755,184.72,184.68,4.49726409]
[1755706893115,0.03567755,184.72,184.71,3.05]
[1755706893520,363.7,184.88,184.71,3.05]
[1755706893521,2.95,184.8,184.71,7.54726409]
[1755706894415,2.95,184.8,184.73,5.413]
[1755706895115,2.95,184.8,184.74,5.4128]
[1755706895320,2.95,184.8,184.72,4.49726409]
[1755706895517,2.95,184.8,184.71,3.05]
[1755706895718,2.95,184.8,184.7,4.49726409]
[1755706896316,2.95,184.8,184.71,5.4136]
[1755706896622,2.95,184.8,184.72,4.50118026]
[1755706896818,2.95,184.84,184.73,3.05]
[1755706897217,2.95,184.84,184.74,3.05]
[1755706897525,2.95,184.84,184.74,7.55118026]
[1755706897718,2.95,184.84,184.76,4.50118026]
[1755706897917,2.95,184.84,184.79,3.05]
[1755706898324,2.95,184.87,184.78,5.4114]
[1755706898725,2.95,184.87,184.76,4.50118026]
[1755706899324,2.95,184.87,184.75,7.55118026]
[1755706900023,2.95,184.87,184.75,3.05]
[1755706900723,2.95,184.87,184.73,4.50118026]
[1755706901025,2.95,184.83,184.72,4.50118026]
[1755706901221,2.95,184.82,184.71,4.50118026]
[1755706901426,2.95,184.82,184.69,3.05]
[1755706901630,2.95,184.82,184.69,7.55118026]
[1755706901823,2.95,184.82,184.69,4.50118026]
[1755706902425,2.95,184.82,184.68,7.55118026]
[1755706902623,140.22,184.81,184.68,7.55118026]
[1755706902821,2.95,184.8,184.7,3.05]
[1755706903027,2.95,184.84,184.71,3.05]
[1755706903527,2.95,184.84,184.71,7.55118026]
[1755706903727,2.95,184.84,184.73,4.50118026]
[1755706903927,2.95,184.84,184.72,4.50118026]
[1755706904126,2.95,184.84,184.71,7.55118026]
[1755706904323,2.95,184.84,184.72,4.50118026]
[1755706904727,2.95,184.84,184.71,3.05]
[1755706904728,2.95,184.84,184.73,7.55118026]
[1755706904924,2.95,184.84,184.73,12.96418026]
[1755706905323,2.95,184.84,184.73,7.55118026]
[1755706905524,2.95,184.84,184.72,4.50118026]
[1755706906131,2.95,184.84,184.7,4.50118026]
[1755706906331,2.95,184.82,184.7,4.50118026]
[1755706907520,143.95,184.82,184.71,3.05]
[1755706907732,2.95,184.82,184.72,5.4134]
[1755706908125,2.95,184.82,184.72,9.91458026]
[1755706908331,2.95,184.82,184.72,5.4134]
[1755706908532,2.95,184.82,184.71,7.55118026]
[1755706909128,2.95,184.82,184.7,4.50118026]
[1755706909630,140.96,184.81,184.69,4.50118026]
[1755706909836,2.95,184.8,184.69,4.50118026]
[1755706910942,2.95,184.78,184.69,4.50118026]
[1755706911940,2.95,184.78,184.69,9.91538026]
[1755706912344,2.95,184.78,184.69,4.50118026]
[1755706912536,2.95,184.78,184.71,5.4136]
[1755706912937,2.95,184.78,184.71,9.91478026]
[1755706913338,2.95,184.78,184.71,4.50118026]
[1755706913842,2.95,184.78,184.7,3.05]
[1755706913843,2.95,184.78,184.7,4.50118026]
[1755706914043,2.95,184.78,184.69,4.50118026]
[1755706915441,2.95,184.78,184.66,10.58946114]
[1755706915642,2.95,184.78,184.65,4.50118026]
[1755706915842,140.7,184.77,184.65,4.50118026]
[1755706916042,3.06,184.76,184.65,4.50118026]
[1755706916446,3.06,184.76,184.63,3.05]
[1755706916447,3.06,184.74,184.63,4.50118026]
[1755706917047,3.06,184.74,184.61,9.12828088]
[1755706917048,3.06,184.74,184.61,7.54118026]
[1755706918050,3.06,184.74,184.61,3.04]
[1755706919949,3.06,184.74,184.61,7.54118026]
[1755706920254,3.06,184.74,184.63,5.416]
[1755706920446,3.06,184.74,184.64,3.04]
[1755706920944,3.06,184.74,184.61,4.50118026]
[1755706921344,3.06,184.74,184.6,7.54118026]
[1755706921847,3.06,184.72,184.6,3.04]
[1755706922052,3.06,184.71,184.6,3.04]